fUST/lending_fUST_20250713
["ID","MTS","AMOUNT","RATE_DAILY","PERIOD"]
[371694063,1752390648993,-500.0,0.00018826,2]
[371694064,1752390649004,-428.9497036,0.00018849,2]
[371694065,1752390649014,-500.0,0.00018853,2]
[371694066,1752390649024,-500.0,0.0001888,2]
[371694067,1752390649034,-629.7172109,0.00018892,2]
[371694068,1752390649044,-500.0,0.00018908,2]
[371694069,1752390649054,-280.0,0.00018935,2]
[371694070,1752390649064,-787.46,0.00018961,2]
[371694071,1752390649074,-3176.42,0.00018961,2]
[371694072,1752390649085,-1658.7,0.00018961,2]
[371694073,1752390649095,-947.81,0.00018961,2]
[371694074,1752390649105,-460.0,0.00018961,2]
[371694075,1752390649115,-1411.49,0.00018961,2]
[371694076,1752390649124,-856.23,0.00018961,2]
[371694077,1752390649134,-161.8367536,0.00018986,2]
[371694078,1752390649144,-768.79883834,0.00018996,2]
[371694079,1752390649154,-1000.0,0.00018998,2]
[371694080,1752390649164,-1000.0,0.00018998,2]
[371694081,1752390649174,-151.0,0.00019,2]
[371694082,1752390649184,-151.0,0.00019,2]
[371694083,1752390649194,-151.0,0.00019,2]
[371694084,1752390649204,-151.0,0.00019002,2]
[371694085,1752390649214,-460.0,0.0001906,2]
[371694086,1752390649223,-460.0,0.0001906,2]
[371694087,1752390649233,-576.39,0.0001906,2]
[371694088,1752390649243,-283.43,0.0001906,2]
[371694089,1752390649253,-460.0,0.0001906,2]
[371694090,1752390649263,-474.76,0.0001906,2]
[371694091,1752390649273,-460.0,0.0001906,2]
[371694092,1752390649283,-464.95,0.0001906,2]
[371694093,1752390649294,-562.92,0.0001906,2]
[371694094,1752390649304,-715.88,0.0001906,2]
[371694095,1752390649315,-460.0,0.0001906,2]
[371694096,1752390649326,-460.0,0.0001906,2]
[371694097,1752390649337,-2389.55,0.0001906,2]
[371694098,1752390649346,-664.35,0.0001906,2]
[371694099,1752390649356,-460.0,0.00019061,2]
[371694100,1752390649365,-504.5,0.00019061,2]
[371694101,1752390649375,-1008.27,0.00019061,2]
[371694102,1752390649386,-605.53,0.00019061,2]
[371694103,1752390649396,-868.12,0.00019061,2]
[371694104,1752390649405,-579.23,0.00019061,2]
[371694105,1752390649416,-2752.06,0.00019061,2]
[371694106,1752390649425,-747.79,0.00019061,2]
[371694107,1752390649435,-460.0,0.00019063,2]
[371694108,1752390649444,-12230.09247233,0.00019072,2]
[371694109,1752390649453,-254.9155158,0.00019178,2]
[371694110,1752390649462,-460.0,0.00019178,2]
[371694111,1752390649471,-467.33538975,0.00019178,2]
[371694112,1752390649480,-151.0,0.00019178,2]
[371694113,1752390649490,-666.0,0.00019178,2]
[371694114,1752390649500,-305.820766,0.00019178,2]
[371694115,1752390649509,-168.0,0.00019196,2]
[371694116,1752390649519,-230.21,0.00019198,2]
[371694117,1752390649528,-151.0,0.000192,2]
[371694118,1752390649536,-704.51,0.000192,2]
[371694119,1752390649546,-3551.0,0.000192,2]
[371694120,1752390649555,-256.03336106,0.00019233,2]
[371694121,1752390649565,-787.46,0.00019235,2]
[371694122,1752390649574,-3176.42,0.00019235,2]
[371694123,1752390649584,-1658.7,0.00019235,2]
[371694124,1752390649593,-947.81,0.00019235,2]
[371694125,1752390649603,-460.0,0.00019235,2]
[371694126,1752390649612,-1411.49,0.00019235,2]
[371694127,1752390649621,-856.23,0.00019235,2]
[371694128,1752390649631,-168.0,0.00019249,2]
[371694129,1752390649640,-768.79883834,0.00019275,2]
[371694130,1752390649649,-1343.15995929,0.00019283,2]
[371694131,1752390649659,-151.0,0.000193,2]
[371694132,1752390649668,-151.0,0.00019329,2]
[371694133,1752390649677,-151.0,0.00019329,2]
[371694134,1752390649687,-100000.0,0.00019329,2]
[371694135,1752390649696,-168.0,0.00019334,2]
[371694136,1752390649706,-460.0,0.00019334,2]
[371694137,1752390649715,-460.0,0.00019334,2]
[371694138,1752390649724,-576.39,0.00019334,2]
[371694139,1752390649734,-460.0,0.00019334,2]
[371694140,1752390649744,-474.76,0.00019334,2]
[371694141,1752390649755,-460.0,0.00019334,2]
[371694142,1752390649764,-464.95,0.00019334,2]
[371694143,1752390649774,-562.92,0.00019334,2]
[371694144,1752390649784,-715.88,0.00019334,2]
[371694145,1752390649793,-460.0,0.00019334,2]
[371694146,1752390649803,-460.0,0.00019334,2]
[371694147,1752390649812,-2389.55,0.00019334,2]
[371694148,1752390649821,-664.35,0.00019334,2]
[371694149,1752390649830,-460.0,0.00019335,2]
[371694150,1752390649841,-504.5,0.00019335,2]
[371694151,1752390649850,-1008.27,0.00019335,2]
[371694152,1752390649860,-605.53,0.00019335,2]
[371694153,1752390649870,-868.12,0.00019335,2]
[371694154,1752390649880,-579.23,0.00019335,2]
[371694155,1752390649889,-2752.06,0.00019335,2]
[371694156,1752390649899,-747.79,0.00019335,2]
[371694157,1752390649908,-151.0,0.00019335,2]
[371694158,1752390649917,-460.0,0.00019337,2]
[371694159,1752390649927,-1220.60777957,0.00019373,2]
[371694160,1752390649937,-12230.09247233,0.00019383,2]
[371694161,1752390649950,-151.0,0.000194,2]
[371694162,1752390649962,-534.567117,0.00019404,2]
[371694163,1752390649971,-768.79883846,0.0001948,2]
[371694164,1752390649981,-1895.5075078,0.00019508,2]
[371694165,1752390649993,-787.46,0.00019509,2]
[371694166,1752390650009,-3176.42,0.00019509,2]
[371694167,1752390650019,-1658.7,0.00019509,2]
[371694168,1752390650029,-947.81,0.00019509,2]
[371694169,1752390650038,-460.0,0.00019509,2]
[371694170,1752390650049,-1411.49,0.00019509,2]
[371694171,1752390650058,-856.23,0.00019509,2]
[371694172,1752390650068,-1500.0,0.00019546,2]
[371694173,1752390650078,-215.0738,0.00019556,2]
[371694174,1752390650088,-151.0,0.000196,2]
[371694175,1752390650098,-34891.86565638,0.00019602,2]
[371694176,1752390650372,-989.71,0.00018238,2]
[371694177,1752390650382,-1324.241988,0.00019602,2]
[371694178,1752390650393,-633.07122232,0.00019602,2]
[371694179,1752390650404,-667.58803514,0.00019602,2]
[371694180,1752390650546,-779.52,0.00016486,3]
[371694181,1752390650556,-989.71,0.00018512,2]
[371694182,1752390650565,-989.71,0.00018786,2]
[371694183,1752390650575,-463.4852085,0.00019602,2]
[371694184,1752390650646,-460.0,0.00016594,2]
[371694185,1752390650656,-989.71,0.0001906,2]
[371694186,1752390650665,-989.71,0.00019334,2]
[371694187,1752390650674,-19471.53787529,0.00019602,2]
[371694188,1752390650701,-460.0,0.00016495,2]
[371694189,1752390650711,-1208.97019674,0.00019602,2]
[371694190,1752390650722,-609.52765627,0.00019602,2]
[371694191,1752390650823,-460.0,0.00016495,2]
[371694192,1752390650833,-460.0,0.00016594,2]
[371694193,1752390650842,-428.9497036,0.00019479,2]
[371694194,1752390650852,-12462.86186867,0.00019602,2]
[371694195,1752390650862,-407.89,0.00019608,2]
[371694196,1752390650872,-460.0,0.00019608,2]
[371694197,1752390650882,-576.39,0.00019608,2]
[371694198,1752390650892,-460.0,0.00019608,2]
[371694199,1752390650902,-474.76,0.00019608,2]
[371694200,1752390650912,-158.64,0.00019608,2]
[371694201,1752390650921,-464.95,0.00019608,2]
[371694202,1752390650932,-562.92,0.00019608,2]
[371694203,1752390650943,-715.88,0.00019608,2]
[371694204,1752390650954,-460.0,0.00019608,2]
[371694205,1752390650964,-460.0,0.00019608,2]
[371694206,1752390650974,-2389.55,0.00019608,2]
[371694207,1752390650983,-664.35,0.00019608,2]
[371694208,1752390650994,-989.71,0.00019608,2]
[371694209,1752390651003,-460.0,0.00019609,2]
[371694210,1752390651013,-504.5,0.00019609,2]
[371694211,1752390651024,-1008.27,0.00019609,2]
[371694212,1752390651034,-605.53,0.00019609,2]
[371694213,1752390651043,-868.12,0.00019609,2]
[371694214,1752390651053,-579.23,0.00019609,2]
[371694215,1752390651063,-2752.06,0.00019609,2]
[371694216,1752390651072,-747.79,0.00019609,2]
[371694217,1752390651082,-460.0,0.00019611,2]
[371694218,1752390651091,-392.0,0.00019625,2]
[371694219,1752390651101,-1569.496,0.00019653,2]
[371694220,1752390651110,-500.0,0.00019673,2]
[371694221,1752390651120,-636.21661904,0.00019673,2]
[371694222,1752390651130,-12230.09247233,0.00019693,2]
[371694223,1752390651140,-587.0,0.00019697,2]
[371694224,1752390651149,-19640.79,0.000197,2]
[371694225,1752390651158,-150.6122,0.00019701,2]
[371694226,1752390651169,-151.0,0.00019709,2]
[371694227,1752390651178,-151.0,0.00019709,2]
[371694228,1752390651188,-151.0,0.00019709,2]
[371694229,1752390651198,-151.0,0.00019709,2]
[371694230,1752390651208,-151.0,0.00019709,2]
[371694231,1752390651218,-151.0,0.00019709,2]
[371694232,1752390651228,-787.46,0.00019783,2]
[371694233,1752390651238,-3176.42,0.00019783,2]
[371694234,1752390651247,-1658.7,0.00019783,2]
[371694235,1752390651257,-947.81,0.00019783,2]
[371694236,1752390651267,-460.0,0.00019783,2]
[371694237,1752390651276,-1411.49,0.00019783,2]
[371694238,1752390651286,-856.23,0.00019783,2]
[371694239,1752390651297,-392.0,0.00019786,2]
[371694240,1752390651306,-851.79375385,0.000198,2]
[371694241,1752390651315,-151.0,0.000198,2]
[371694242,1752390651325,-151.0,0.000198,2]
[371694243,1752390651334,-151.0,0.000198,2]
[371694244,1752390651343,-170.460945,0.000198,2]
[371694245,1752390651352,-151.0,0.000198,2]
[371694246,1752390651361,-151.259647,0.000198,2]
[371694247,1752390651371,-151.0,0.000198,2]
[371694248,1752390651380,-151.0,0.000198,2]
[371694249,1752390651389,-151.0,0.000198,2]
[371694250,1752390651399,-152.276179,0.000198,2]
[371694251,1752390651408,-151.904691,0.000198,2]
[371694252,1752390651418,-938.16746979,0.000198,2]
[371694253,1752390651429,-151.0,0.000198,2]
[371694254,1752390651440,-151.0,0.000198,2]
[371694255,1752390651450,-151.0,0.000198,2]
[371694256,1752390651459,-151.0,0.000198,2]
[371694257,1752390651468,-151.0,0.000198,2]
[371694258,1752390651477,-151.0,0.000198,2]
[371694259,1752390651487,-151.0,0.000198,2]
[371694260,1752390651497,-301975.25519034,0.000198,2]
[371694261,1752390651511,-18322.19739142,0.000198,2]
[371694262,1752390651525,-10478.21636747,0.000198,2]
[371694275,1752390849968,154.849508,0.0002254,30]
[371694276,1752390850370,154.849508,0.00022496,30]
[371694277,1752390850662,154.849508,0.00022452,30]
[371694278,1752390957208,24900.0,0.00015457,2]
[371694279,1752390967810,670.18131895,0.000163,2]
[371694282,1752391031784,1710.849,0.00027397,120]
[371694283,1752391203026,586.40865409,0.000163,2]
[371694284,1752391320091,600.0,0.00017254,7]
[371694285,1752391397004,200.0,0.00016438,10]
[371694286,1752391397570,200.0,0.00016438,10]
[371694287,1752391398053,203.534836,0.00016438,10]
[371694288,1752391463294,513.10757232,0.000163,2]
[371694290,1752391468725,436.736486,0.00013699,2]
[371694291,1752391489909,1000.0,0.00023,30]
[371694363,1752391693686,448.96912578,0.000163,2]
[371694370,1752391723472,241.95576118,0.00025237,60]
[371694381,1752391832022,-462.228,0.00016338,2]
[371694382,1752391832036,-1363.32439168,0.00016338,2]
[371694383,1752391832058,-298.08,0.00016338,2]
[371694446,1752391838621,-42.55822668,0.00016338,2]
[371694449,1752391838631,-300.0,0.00016395,2]
[371694451,1752391838640,-139.11503856,0.00016395,2]
[371694453,1752391838652,-867.88496144,0.00016395,2]
[371694455,1752391838661,-3545.74240864,0.00016396,2]
[371694458,1752391838673,-11117.58288135,0.00016396,2]
[371694460,1752391838684,-6086.40399879,0.00016396,2]
[371694469,1752391838756,-101650.09696095,0.00016396,2]
[371694471,1752391838766,-151.0,0.000164,2]
[371694473,1752391838776,-442.9,0.00016424,3]
[371694475,1752391838786,-500.0,0.00016433,2]
[371694477,1752391838795,-500.0,0.00016433,2]
[371694479,1752391838806,-500.0,0.00016433,2]
[371694481,1752391838816,-500.0,0.00016433,2]
[371694483,1752391838825,-500.0,0.00016433,2]
[371694485,1752391838835,-500.0,0.00016433,2]
[371694487,1752391838845,-500.0,0.00016433,2]
[371694489,1752391838855,-500.0,0.00016433,2]
[371694491,1752391838864,-500.0,0.00016433,2]
[371694493,1752391838874,-500.0,0.00016433,2]
[371694496,1752391838884,-500.0,0.00016433,2]
[371694497,1752391838895,-500.0,0.00016433,2]
[371694500,1752391838905,-223.76902587,0.00016433,2]
[371694502,1752391838914,-500.0,0.00016433,2]
[371694504,1752391838923,-500.0,0.00016433,2]
[371694506,1752391838934,-500.0,0.00016433,2]
[371694508,1752391838943,-479.14016097,0.00016433,2]
[371694510,1752391838953,-500.0,0.00016433,2]
[371694512,1752391838962,-500.0,0.00016433,2]
[371694514,1752391838971,-500.0,0.00016433,2]
[371694515,1752391838981,-500.0,0.00016433,2]
[371694518,1752391838990,-577.17791944,0.00016433,2]
[371694520,1752391839000,-202.1261914,0.00016433,2]
[371694522,1752391839009,-500.0,0.00016433,2]
[371694523,1752391839019,-500.0,0.00016433,2]
[371694526,1752391839028,-500.0,0.00016433,2]
[371694528,1752391839037,-500.0,0.00016433,2]
[371694530,1752391839047,-500.0,0.00016433,2]
[371694532,1752391839057,-500.0,0.00016433,2]
[371694533,1752391839066,-500.0,0.00016433,2]
[371694536,1752391839077,-391.83385166,0.00016433,2]
[371694537,1752391839087,-500.0,0.00016433,2]
[371694539,1752391839096,-500.0,0.00016433,2]
[371694541,1752391839105,-500.0,0.00016433,2]
[371694543,1752391839115,-500.0,0.00016433,2]
[371694545,1752391839124,-500.0,0.00016433,2]
[371694547,1752391839134,-500.0,0.00016433,2]
[371694549,1752391839143,-500.0,0.00016433,2]
[371694551,1752391839153,-500.0,0.00016433,2]
[371694554,1752391839162,-500.0,0.00016433,2]
[371694555,1752391839172,-500.0,0.00016433,2]
[371694558,1752391839181,-366.89150276,0.00016433,2]
[371694560,1752391839191,-250.0,0.00016433,2]
[371694562,1752391839201,-500.0,0.00016433,2]
[371694564,1752391839210,-500.0,0.00016433,2]
[371694565,1752391839220,-500.0,0.00016433,2]
[371694568,1752391839230,-500.0,0.00016433,2]
[371694570,1752391839239,-447.89151244,0.00016433,2]
[371694572,1752391839248,-500.0,0.00016433,2]
[371694573,1752391839258,-500.0,0.00016433,2]
[371694575,1752391839267,-500.0,0.00016433,2]
[371694578,1752391839277,-500.0,0.00016433,2]
[371694581,1752391839287,-500.0,0.00016433,2]
[371694583,1752391839298,-500.0,0.00016433,2]
[371694585,1752391839309,-38295.356972,0.00016434,2]
[371694587,1752391839318,-500.0,0.00016437,2]
[371694589,1752391839328,-460.0,0.00016438,2]
[371694591,1752391839340,-460.0,0.00016438,2]
[371694593,1752391839351,-460.0,0.00016438,2]
[371694595,1752391839360,-460.0,0.00016438,2]
[371694596,1752391839370,-415.25003948,0.00016438,2]
[371694598,1752391839381,-460.0,0.00016438,2]
[371694600,1752391839391,-468.69657159,0.00016438,2]
[371694602,1752391839404,-460.0,0.00016438,2]
[371694604,1752391839413,-460.0,0.00016438,2]
[371694607,1752391839424,-460.0,0.00016438,2]
[371694608,1752391839434,-576.79662114,0.00016438,2]
[371694610,1752391839443,-460.0,0.00016438,2]
[371694612,1752391839452,-394.53645477,0.00016438,2]
[371694614,1752391839462,-460.0,0.00016438,2]
[371694616,1752391839472,-317.66006749,0.00016438,2]
[371694619,1752391839482,-460.0,0.00016438,2]
[371694621,1752391839491,-460.0,0.00016438,2]
[371694622,1752391839501,-460.0,0.00016438,2]
[371694624,1752391839510,-460.0,0.00016438,2]
[371694627,1752391839521,-468.55,0.00016438,2]
[371694628,1752391839531,-460.0,0.00016438,2]
[371694630,1752391839541,-460.0,0.00016438,2]
[371694632,1752391839551,-460.0,0.00016438,2]
[371694635,1752391839561,-460.0,0.00016438,2]
[371694636,1752391839570,-460.0,0.00016438,2]
[371694638,1752391839580,-460.0,0.00016438,2]
[371694640,1752391839590,-450.93625107,0.00016438,2]
[371694642,1752391839599,-460.0,0.00016438,2]
[371694644,1752391839609,-455.71908756,0.00016438,2]
[371694646,1752391839619,-460.0,0.00016438,2]
[371694648,1752391839628,-460.0,0.00016438,2]
[371694650,1752391839638,-460.0,0.00016438,2]
[371694652,1752391839648,-460.0,0.00016438,2]
[371694654,1752391839658,-460.0,0.00016438,2]
[371694656,1752391839667,-460.0,0.00016438,2]
[371694658,1752391839677,-460.0,0.00016438,2]
[371694660,1752391839687,-460.0,0.00016438,2]
[371694662,1752391839697,-460.0,0.00016438,2]
[371694664,1752391839712,-460.0,0.00016438,2]
[371694666,1752391839722,-460.0,0.00016438,2]
[371694668,1752391839732,-460.0,0.00016438,2]
[371694670,1752391839741,-460.0,0.00016438,2]
[371694672,1752391839751,-460.0,0.00016438,2]
[371694674,1752391839760,-460.0,0.00016438,2]
[371694676,1752391839770,-461.67124294,0.00016438,2]
[371694678,1752391839779,-460.0,0.00016438,2]
[371694680,1752391839789,-460.0,0.00016438,2]
[371694682,1752391839798,-460.0,0.00016438,2]
[371694684,1752391839808,-460.0,0.00016438,2]
[371694686,1752391839818,-460.0,0.00016438,2]
[371694688,1752391839827,-460.0,0.00016438,2]
[371694689,1752391839836,-460.0,0.00016438,2]
[371694691,1752391839846,-460.0,0.00016438,2]
[371694694,1752391839856,-460.0,0.00016438,2]
[371694696,1752391839865,-460.0,0.00016438,2]
[371694697,1752391839875,-460.0,0.00016438,2]
[371694699,1752391839884,-460.0,0.00016438,2]
[371694701,1752391839893,-460.58875648,0.00016438,2]
[371694704,1752391839903,-460.0,0.00016438,2]
[371694705,1752391839912,-460.0,0.00016438,2]
[371694708,1752391839922,-460.0,0.00016438,2]
[371694709,1752391839931,-460.0,0.00016438,2]
[371694711,1752391839940,-460.0,0.00016438,2]
[371694713,1752391839952,-460.0,0.00016438,2]
[371694715,1752391839961,-460.0,0.00016438,2]
[371694718,1752391839971,-460.85241367,0.00016438,2]
[371694719,1752391839980,-460.0,0.00016438,2]
[371694721,1752391839989,-460.0,0.00016438,2]
[371694723,1752391839999,-460.0,0.00016438,2]
[371694725,1752391840009,-460.0,0.00016438,2]
[371694727,1752391840019,-460.0,0.00016438,2]
[371694729,1752391840028,-460.0,0.00016438,2]
[371694731,1752391840038,-460.0,0.00016438,2]
[371694733,1752391840047,-460.0,0.00016438,2]
[371694735,1752391840056,-366.61941739,0.00016438,2]
[371694737,1752391840066,-460.0,0.00016438,2]
[371694739,1752391840075,-460.40820383,0.00016438,2]
[371694741,1752391840084,-460.0,0.00016438,2]
[371694743,1752391840094,-460.0,0.00016438,2]
[371694745,1752391840103,-460.0,0.00016438,2]
[371694747,1752391840112,-460.0,0.00016438,2]
[371694750,1752391840122,-460.0,0.00016438,2]
[371694752,1752391840131,-460.0,0.00016438,2]
[371694754,1752391840140,-460.0,0.00016438,2]
[371694756,1752391840149,-460.0,0.00016438,2]
[371694758,1752391840158,-460.0,0.00016438,2]
[371694760,1752391840168,-460.0,0.00016438,2]
[371694762,1752391840178,-460.0,0.00016438,2]
[371694764,1752391840189,-460.0,0.00016438,2]
[371694765,1752391840198,-461.85676211,0.00016438,2]
[371694767,1752391840207,-460.0,0.00016438,2]
[371694769,1752391840216,-460.0,0.00016438,2]
[371694771,1752391840226,-460.0,0.00016438,2]
[371694773,1752391840235,-460.0,0.00016438,2]
[371694775,1752391840245,-460.0,0.00016438,2]
[371694777,1752391840255,-460.0,0.00016438,2]
[371694779,1752391840264,-469.08872605,0.00016438,2]
[371694781,1752391840274,-460.0,0.00016438,2]
[371694783,1752391840283,-460.0,0.00016438,2]
[371694785,1752391840293,-460.0,0.00016438,2]
[371694787,1752391840306,-460.0,0.00016438,2]
[371694789,1752391840316,-460.0,0.00016438,2]
[371694791,1752391840325,-460.0,0.00016438,2]
[371694793,1752391840334,-567.9,0.00016438,2]
[371694795,1752391840346,-460.0,0.00016438,2]
[371694797,1752391840355,-460.0,0.00016438,2]
[371694799,1752391840365,-460.0,0.00016438,2]
[371694801,1752391840375,-460.0,0.00016438,2]
[371694803,1752391840384,-460.0,0.00016438,2]
[371694805,1752391840395,-460.0,0.00016438,2]
[371694807,1752391840404,-460.0,0.00016438,2]
[371694809,1752391840413,-460.0,0.00016438,2]
[371694811,1752391840422,-460.33278752,0.00016438,2]
[371694813,1752391840431,-460.0,0.00016438,2]
[371694815,1752391840440,-460.0,0.00016438,2]
[371694817,1752391840450,-460.0,0.00016438,2]
[371694819,1752391840459,-460.0,0.00016438,2]
[371694821,1752391840469,-460.66653141,0.00016438,2]
[371694823,1752391840478,-460.0,0.00016438,2]
[371694824,1752391840487,-460.0,0.00016438,2]
[371694826,1752391840497,-460.0,0.00016438,2]
[371694828,1752391840507,-460.0,0.00016438,2]
[371694830,1752391840516,-460.0,0.00016438,2]
[371694832,1752391840526,-460.0,0.00016438,2]
[371694834,1752391840535,-460.0,0.00016438,2]
[371694836,1752391840543,-460.0,0.00016438,2]
[371694838,1752391840553,-460.0,0.00016438,2]
[371694840,1752391840562,-460.0,0.00016438,2]
[371694842,1752391840572,-460.0,0.00016438,2]
[371694844,1752391840581,-460.0,0.00016438,2]
[371694846,1752391840591,-574.5909161,0.00016438,2]
[371694848,1752391840600,-460.0,0.00016438,2]
[371694850,1752391840610,-460.0,0.00016438,2]
[371694852,1752391840619,-460.0,0.00016438,2]
[371694854,1752391840629,-460.0,0.00016438,2]
[371694856,1752391840638,-460.0,0.00016438,2]
[371694858,1752391840648,-460.0,0.00016438,2]
[371694860,1752391840657,-460.0,0.00016438,2]
[371694861,1752391840667,-460.0,0.00016438,2]
[371694863,1752391840676,-460.0,0.00016438,2]
[371694865,1752391840687,-460.0,0.00016438,2]
[371694867,1752391840696,-460.44513093,0.00016438,2]
[371694869,1752391840706,-460.0,0.00016438,2]
[371694871,1752391840716,-460.0,0.00016438,2]
[371694873,1752391840725,-460.0,0.00016438,2]
[371694875,1752391840734,-460.0,0.00016438,2]
[371694877,1752391840744,-460.0,0.00016438,2]
[371694879,1752391840753,-460.0,0.00016438,2]
[371694881,1752391840763,-460.0,0.00016438,2]
[371694883,1752391840772,-460.0,0.00016438,2]
[371694885,1752391840781,-460.0,0.00016438,2]
[371694887,1752391840790,-460.0,0.00016438,2]
[371694889,1752391840799,-460.31662825,0.00016438,2]
[371694891,1752391840808,-460.0,0.00016438,2]
[371694893,1752391840817,-460.0,0.00016438,2]
[371694895,1752391840826,-460.0,0.00016438,2]
[371694896,1752391840835,-460.91131236,0.00016438,2]
[371694898,1752391840844,-460.0,0.00016438,2]
[371694900,1752391840853,-460.0,0.00016438,2]
[371694902,1752391840863,-460.0,0.00016438,2]
[371694904,1752391840872,-318.76353196,0.00016438,2]
[371694906,1752391840881,-460.0,0.00016438,2]
[371694908,1752391840890,-460.0,0.00016438,2]
[371694910,1752391840899,-460.0,0.00016438,2]
[371694912,1752391840908,-460.0,0.00016438,2]
[371694914,1752391840917,-460.0,0.00016438,2]
[371694916,1752391840926,-460.0,0.00016438,2]
[371694918,1752391840935,-460.0,0.00016438,2]
[371694920,1752391840945,-460.0,0.00016438,2]
[371694922,1752391840955,-460.0,0.00016438,2]
[371694924,1752391840964,-460.0,0.00016438,2]
[371694926,1752391840974,-460.0,0.00016438,2]
[371694927,1752391840983,-460.0,0.00016438,2]
[371694929,1752391840993,-460.0,0.00016438,2]
[371694931,1752391841002,-460.0,0.00016438,2]
[371694933,1752391841011,-460.0,0.00016438,2]
[371694935,1752391841020,-460.11175571,0.00016438,2]
[371694937,1752391841030,-460.0,0.00016438,2]
[371694939,1752391841040,-460.0,0.00016438,2]
[371694941,1752391841050,-460.0,0.00016438,2]
[371694943,1752391841059,-460.0,0.00016438,2]
[371694945,1752391841068,-460.0,0.00016438,2]
[371694947,1752391841078,-460.0,0.00016438,2]
[371694949,1752391841088,-460.0,0.00016438,2]
[371694951,1752391841097,-460.0,0.00016438,2]
[371694953,1752391841107,-460.0,0.00016438,2]
[371694955,1752391841117,-193.56711236,0.00016438,2]
[371694957,1752391841127,-460.0,0.00016438,2]
[371694959,1752391841136,-460.0,0.00016438,2]
[371694961,1752391841145,-460.0,0.00016438,2]
[371694963,1752391841154,-438.02941369,0.00016438,2]
[371694964,1752391841163,-460.0,0.00016438,2]
[371694966,1752391841173,-460.0,0.00016438,2]
[371694968,1752391841182,-460.0,0.00016438,2]
[371694970,1752391841192,-460.0,0.00016438,2]
[371694972,1752391841202,-460.0,0.00016438,2]
[371694974,1752391841211,-460.0,0.00016438,2]
[371694976,1752391841221,-602.62577193,0.00016438,2]
[371694978,1752391841230,-460.0,0.00016438,2]
[371694980,1752391841240,-460.0,0.00016438,2]
[371694982,1752391841249,-460.0,0.00016438,2]
[371694984,1752391841258,-460.0,0.00016438,2]
[371694986,1752391841267,-460.0,0.00016438,2]
[371694988,1752391841277,-460.0,0.00016438,2]
[371694990,1752391841286,-460.0,0.00016438,2]
[371694992,1752391841297,-460.0,0.00016438,2]
[371694993,1752391841307,-460.0,0.00016438,2]
[371694995,1752391841316,-460.0,0.00016438,2]
[371694997,1752391841325,-460.0,0.00016438,2]
[371694999,1752391841334,-1150.63,0.00016438,2]
[371695001,1752391841347,-460.0,0.00016438,2]
[371695003,1752391841356,-460.0,0.00016438,2]
[371695005,1752391841366,-460.0,0.00016438,2]
[371695007,1752391841377,-460.0,0.00016438,2]
[371695009,1752391841387,-460.0,0.00016438,2]